lending/lending_fUSD_20250131
["ID","MTS","AMOUNT","RATE_DAILY","PERIOD"]
[351119246,1738343436035,-832.09,0.00016438,2]
[351119247,1738343436044,-500.0,0.00016438,2]
[351119248,1738343436054,-777.16,0.00016438,2]
[351119249,1738343436065,-4929.55,0.00016438,2]
[351119250,1738343436076,-500.0,0.00016438,2]
[351119251,1738343436085,-500.0,0.00016438,2]
[351119252,1738343436094,-521.69,0.00016438,2]
[351119253,1738343436104,-500.0,0.00016438,2]
[351119254,1738343436117,-500.0,0.00016438,2]
[351119255,1738343436127,-500.0,0.00016438,2]
[351119256,1738343436136,-500.0,0.00016438,2]
[351119257,1738343436146,-1130.09,0.00016438,2]
[351119258,1738343436157,-756.22,0.00016438,2]
[351119259,1738343436166,-838.69,0.00016438,2]
[351119260,1738343436176,-500.0,0.00016438,2]
[351119261,1738343436186,-876.59,0.00016438,2]
[351119262,1738343436195,-1378.61,0.00016438,2]
[351119263,1738343436205,-1517.22,0.00016438,2]
[351119264,1738343436214,-4703.32,0.00016438,2]
[351119265,1738343436223,-500.0,0.00016438,2]
[351119266,1738343436233,-2618.44,0.00016438,2]
[351119267,1738343436242,-500.0,0.00016438,2]
[351119268,1738343436251,-500.0,0.00016438,2]
[351119269,1738343436259,-500.0,0.00016438,2]
[351119270,1738343436269,-500.0,0.00016438,2]
[351119271,1738343436278,-500.0,0.00016438,2]
[351119272,1738343436287,-612.88,0.00016438,2]
[351119273,1738343436296,-500.0,0.00016438,2]
[351119274,1738343436305,-624.55,0.00016438,2]
[351119275,1738343436314,-3792.02,0.00016438,2]
[351119276,1738343436324,-579.36,0.00016438,2]
[351119277,1738343436333,-500.0,0.00016438,2]
[351119278,1738343436342,-500.0,0.00016438,2]
[351119279,1738343436351,-568.72,0.00016438,2]
[351119280,1738343436360,-535.61,0.00016438,2]
[351119281,1738343436369,-2076.55,0.00016438,2]
[351119282,1738343436379,-2590.44,0.00016438,2]
[351119283,1738343436388,-500.0,0.00016438,2]
[351119284,1738343436398,-3052.15,0.00016438,2]
[351119285,1738343436407,-622.52,0.00016438,2]
[351119286,1738343436417,-500.0,0.00016438,2]
[351119287,1738343436427,-1408.17,0.00016438,2]
[351119288,1738343436436,-1135.03,0.00016438,2]
[351119289,1738343436445,-500.0,0.00016438,2]
[351119290,1738343436454,-1884.43,0.00016438,2]
[351119291,1738343436464,-500.0,0.00016438,2]
[351119292,1738343436473,-715.02,0.00016438,2]
[351119293,1738343436483,-563.78,0.00016438,2]
[351119294,1738343436492,-727.05,0.00016438,2]
[351119295,1738343436501,-3020.52,0.00016438,2]
[351119296,1738343436510,-663.46,0.00016438,2]
[351119297,1738343436519,-500.0,0.00016438,2]
[351119298,1738343436529,-500.0,0.00016438,2]
[351119299,1738343436538,-1623.68,0.00016438,2]
[351119300,1738343436548,-4421.25,0.00016438,2]
[351119301,1738343436557,-565.29,0.00016438,2]
[351119302,1738343436567,-1062.85,0.00016438,2]
[351119303,1738343436576,-1574.12,0.00016438,2]
[351119304,1738343436586,-500.0,0.00016438,2]
[351119305,1738343436595,-500.0,0.00016438,2]
[351119306,1738343436605,-1965.37,0.00016438,2]
[351119307,1738343436614,-500.0,0.00016438,2]
[351119308,1738343436625,-2148.34,0.00016438,2]
[351119309,1738343436634,-500.0,0.00016438,2]
[351119310,1738343436644,-500.0,0.00016438,2]
[351119311,1738343436653,-500.0,0.00016438,2]
[351119312,1738343436663,-1196.8,0.00016438,2]
[351119313,1738343436672,-920.78,0.00016438,2]
[351119314,1738343436682,-500.0,0.00016438,2]
[351119315,1738343436691,-5000.0,0.00016474,2]
[351119316,1738343436701,-9339.98358114,0.00016551,2]
[351119317,1738343436710,-6540.1519026,0.00016551,2]
[351119318,1738343436719,-403.64114051,0.00016574,2]
[351119319,1738343436728,-521.15153251,0.00016574,2]
[351119320,1738343436738,-870.08,0.00016574,2]
[351119321,1738343436747,-1163.35,0.00016574,2]
[351119322,1738343436757,-500.0,0.00016574,2]
[351119323,1738343436767,-1521.25,0.00016574,2]
[351119324,1738343436776,-798.51,0.00016574,2]
[351119325,1738343436785,-1794.84,0.00016574,2]
[351119326,1738343436795,-500.0,0.00016574,2]
[351119327,1738343436804,-500.0,0.00016574,2]
[351119328,1738343436813,-1604.75,0.00016574,2]
[351119329,1738343436822,-1303.4,0.00016574,2]
[351119330,1738343436831,-656.69,0.00016574,2]
[351119331,1738343436840,-500.0,0.00016574,2]
[351119332,1738343436849,-500.0,0.00016574,2]
[351119333,1738343436858,-861.49,0.00016574,2]
[351119334,1738343436867,-500.0,0.00016574,2]
[351119335,1738343436877,-500.0,0.00016574,2]
[351119336,1738343436889,-707.19,0.00016574,2]
[351119337,1738343436898,-500.0,0.00016574,2]
[351119338,1738343436909,-552.6,0.00016574,2]
[351119339,1738343436918,-687.79,0.00016574,2]
[351119340,1738343436929,-522.1,0.00016574,2]
[351119341,1738343436938,-952.82,0.00016574,2]
[351119342,1738343436947,-829.77,0.00016574,2]
[351119343,1738343436957,-500.0,0.00016575,2]
[351119344,1738343436968,-500.0,0.00016575,2]
[351119345,1738343436977,-500.0,0.00016575,2]
[351119346,1738343436987,-500.0,0.00016575,2]
[351119347,1738343436996,-586.89,0.00016575,2]
[351119348,1738343437005,-500.0,0.00016575,2]
[351119349,1738343437015,-500.0,0.00016575,2]
[351119350,1738343437029,-500.0,0.00016575,2]
[351119351,1738343437038,-500.0,0.00016575,2]
[351119352,1738343437048,-496.25624533,0.00016575,2]
[351119353,1738343437058,-500.0,0.00016575,2]
[351119354,1738343437068,-560.13,0.00016575,2]
[351119355,1738343437077,-500.0,0.00016575,2]
[351119356,1738343437087,-500.0,0.00016575,2]
[351119357,1738343437097,-916.1,0.00016575,2]
[351119358,1738343437106,-500.0,0.00016575,2]
[351119359,1738343437116,-500.0,0.00016575,2]
[351119360,1738343437126,-561.26,0.00016575,2]
[351119361,1738343437136,-577.01,0.00016575,2]
[351119362,1738343437145,-500.0,0.00016575,2]
[351119363,1738343437155,-500.0,0.00016575,2]
[351119364,1738343437165,-500.0,0.00016575,2]
[351119365,1738343437175,-500.0,0.00016575,2]
[351119366,1738343437185,-500.0,0.00016575,2]
[351119367,1738343437195,-500.0,0.00016575,2]
[351119368,1738343437205,-500.0,0.00016575,2]
[351119369,1738343437215,-500.0,0.00016575,2]
[351119370,1738343437226,-500.0,0.00016575,2]
[351119371,1738343437236,-500.0,0.00016575,2]
[351119372,1738343437246,-505.72,0.00016575,2]
[351119373,1738343437256,-500.0,0.00016575,2]
[351119374,1738343437265,-500.0,0.00016575,2]
[351119375,1738343437274,-500.0,0.00016575,2]
[351119376,1738343437283,-500.0,0.00016575,2]
[351119377,1738343437292,-603.83,0.00016575,2]
[351119378,1738343437304,-766.18,0.00016575,2]
[351119379,1738343437316,-500.0,0.00016575,2]
[351119380,1738343437327,-500.0,0.00016575,2]
[351119381,1738343437337,-880.31,0.00016575,2]
[351119382,1738343437348,-500.0,0.00016575,2]
[351119383,1738343437358,-500.0,0.00016575,2]
[351119384,1738343437368,-500.0,0.00016575,2]
[351119385,1738343437380,-500.0,0.00016575,2]
[351119386,1738343437389,-500.0,0.00016575,2]
[351119387,1738343437400,-611.11,0.00016575,2]
[351119388,1738343437412,-500.0,0.00016575,2]
[351119389,1738343437422,-736.79,0.00016575,2]
[351119390,1738343437433,-512.47,0.00016575,2]
[351119391,1738343437491,-500.0,0.00016575,2]
[351119392,1738343437500,-554.67,0.00016575,2]
[351119393,1738343437510,-500.0,0.00016575,2]
[351119394,1738343437519,-500.0,0.00016575,2]
[351119395,1738343437529,-500.0,0.00016575,2]
[351119396,1738343437539,-500.0,0.00016575,2]
[351119397,1738343437548,-500.0,0.00016575,2]
[351119398,1738343437557,-500.0,0.00016575,2]
[351119399,1738343437567,-500.0,0.00016575,2]
[351119400,1738343437576,-500.0,0.00016575,2]
[351119401,1738343437586,-500.0,0.00016575,2]
[351119402,1738343437595,-500.0,0.00016575,2]
[351119403,1738343437605,-500.0,0.00016575,2]
[351119404,1738343437614,-500.0,0.00016575,2]
[351119406,1738343437624,-500.0,0.00016575,2]
[351119407,1738343437634,-500.0,0.00016575,2]
[351119408,1738343437643,-500.0,0.00016575,2]
[351119409,1738343437652,-500.0,0.00016575,2]
[351119410,1738343437663,-779.64,0.00016575,2]
[351119411,1738343437673,-500.0,0.00016575,2]
[351119412,1738343437683,-500.22,0.00016575,2]
[351119413,1738343437692,-500.0,0.00016575,2]
[351119414,1738343437701,-500.0,0.00016575,2]
[351119415,1738343437711,-500.0,0.00016575,2]
[351119416,1738343437721,-500.0,0.00016575,2]
[351119418,1738343437730,-500.0,0.00016575,2]
[351119420,1738343437739,-500.0,0.00016575,2]
[351119421,1738343437749,-500.0,0.00016575,2]
[351119423,1738343437758,-584.04,0.00016575,2]
[351119424,1738343437768,-500.0,0.00016575,2]
[351119425,1738343437777,-500.0,0.00016575,2]
[351119426,1738343437787,-500.0,0.00016575,2]
[351119427,1738343437797,-500.0,0.00016575,2]
[351119428,1738343437806,-686.01,0.00016575,2]
[351119429,1738343437815,-500.0,0.00016575,2]
[351119430,1738343437824,-500.0,0.00016575,2]
[351119431,1738343437834,-500.0,0.00016575,2]
[351119432,1738343437843,-500.0,0.00016575,2]
[351119433,1738343437853,-500.0,0.00016575,2]
[351119434,1738343437862,-508.3666269,0.00016575,2]
[351119435,1738343437874,-500.0,0.00016575,2]
[351119436,1738343437884,-500.0,0.00016575,2]
[351119437,1738343437898,-807.02,0.00016575,2]
[351119438,1738343437908,-500.0,0.00016575,2]
[351119439,1738343437917,-633.45,0.00016575,2]
[351119440,1738343437926,-500.0,0.00016575,2]
[351119441,1738343437938,-500.0,0.00016575,2]
[351119442,1738343437948,-500.0,0.00016575,2]
[351119443,1738343437957,-500.0,0.00016575,2]
[351119444,1738343437969,-500.0,0.00016575,2]
[351119445,1738343437979,-500.0,0.00016575,2]
[351119446,1738343437990,-500.0,0.00016575,2]
[351119447,1738343438000,-500.0,0.00016575,2]
[351119448,1738343438011,-500.0,0.00016575,2]
[351119449,1738343438021,-566.63,0.00016575,2]
[351119450,1738343438030,-272.12543024,0.00016575,2]
[351119451,1738343438040,-500.0,0.00016575,2]
[351119452,1738343438053,-717.37,0.00016575,2]
[351119453,1738343438063,-500.0,0.00016575,2]
[351119454,1738343438073,-630.71,0.00016575,2]
[351119455,1738343438082,-500.0,0.00016575,2]
[351119456,1738343438091,-500.0,0.00016575,2]
[351119457,1738343438101,-199.27604609,0.00016575,2]
[351119458,1738343438110,-500.0,0.00016575,2]
[351119459,1738343438120,-776.89,0.00016575,2]
[351119460,1738343438130,-500.0,0.00016575,2]
[351119461,1738343438139,-670.29,0.00016575,2]
[351119462,1738343438149,-621.62,0.00016575,2]
[351119463,1738343438158,-500.0,0.00016575,2]
[351119464,1738343438167,-500.0,0.00016575,2]
[351119465,1738343438176,-500.0,0.00016575,2]
[351119466,1738343438186,-500.0,0.00016575,2]
[351119467,1738343438198,-510.69466678,0.00016575,2]
[351119468,1738343438208,-689.34,0.00016575,2]
[351119469,1738343438218,-548.55,0.00016575,2]
[351119470,1738343438228,-501.88016014,0.00016575,2]
[351119471,1738343438237,-500.0,0.00016575,2]
[351119472,1738343438246,-500.0,0.00016575,2]
[351119473,1738343438256,-500.0,0.00016575,2]
[351119474,1738343438265,-500.0,0.00016575,2]
[351119475,1738343438274,-500.0,0.00016575,2]
[351119476,1738343438285,-500.0,0.00016575,2]
[351119477,1738343438294,-500.0,0.00016575,2]
[351119478,1738343438304,-544.10133831,0.00016575,2]
[351119479,1738343438314,-500.0,0.00016575,2]
[351119480,1738343438323,-580.11,0.00016575,2]
[351119481,1738343438334,-500.0,0.00016575,2]
[351119482,1738343438344,-931.48,0.00016575,2]
[351119483,1738343438354,-789.86,0.00016575,2]
[351119484,1738343438364,-500.0,0.00016575,2]
[351119486,1738343438374,-500.0,0.00016575,2]
[351119488,1738343438383,-500.0,0.00016575,2]
[351119490,1738343438392,-457.74105635,0.00016575,2]
[351119492,1738343438401,-500.0,0.00016575,2]
[351119494,1738343438411,-500.0,0.00016575,2]
[351119496,1738343438419,-500.0,0.00016575,2]
[351119498,1738343438428,-583.37,0.00016575,2]
[351119500,1738343438438,-500.0,0.00016575,2]
[351119502,1738343438447,-1367.84,0.00016575,2]
[351119504,1738343438456,-500.0,0.00016575,2]
[351119506,1738343438466,-500.0,0.00016575,2]
[351119508,1738343438475,-500.0,0.00016575,2]
[351119510,1738343438485,-500.0,0.00016575,2]
[351119512,1738343438494,-355.94643869,0.00016575,2]
[351119515,1738343439323,-216.81356131,0.00016575,2]
[351119516,1738343439333,-500.0,0.00016575,2]
[351119517,1738343439343,-500.0,0.00016575,2]
[351119518,1738343439353,-887.86,0.00016575,2]
[351119519,1738343439362,-500.0,0.00016575,2]
[351119520,1738343439372,-500.0,0.00016575,2]
[351119521,1738343439382,-500.0,0.00016575,2]
[351119522,1738343439391,-1241.92,0.00016575,2]
[351119523,1738343439400,-500.0,0.00016575,2]
[351119524,1738343439410,-500.0,0.00016575,2]
[351119525,1738343439419,-500.0,0.00016575,2]
[351119526,1738343439429,-951.52,0.00016575,2]
[351119527,1738343439438,-500.0,0.00016575,2]
[351119528,1738343439447,-500.0,0.00016575,2]
[351119529,1738343439457,-943.69,0.00016575,2]
[351119530,1738343439466,-500.0,0.00016575,2]
[351119531,1738343439476,-500.0,0.00016575,2]
[351119532,1738343439485,-500.0,0.00016575,2]
[351119533,1738343439495,-500.0,0.00016575,2]
[351119534,1738343439504,-399.770608,0.00016575,2]
[351119535,1738343439516,-2416.6,0.00016575,2]
[351119536,1738343439529,-500.0,0.00016575,2]
[351119537,1738343439539,-500.0,0.00016575,2]
[351119538,1738343439548,-666.18,0.00016575,2]
[351119539,1738343439557,-500.0,0.00016575,2]
[351119541,1738343439567,-500.0,0.00016575,2]
[351119542,1738343439576,-654.3,0.00016575,2]
[351119543,1738343439585,-500.0,0.00016575,2]
[351119544,1738343439594,-500.0,0.00016575,2]
[351119545,1738343439603,-1057.44,0.00016575,2]
[351119546,1738343439613,-500.0,0.00016575,2]
[351119548,1738343439623,-606.34,0.00016575,2]
[351119549,1738343439632,-500.0,0.00016575,2]
[351119550,1738343439641,-584.04,0.00016575,2]
[351119551,1738343439650,-1013.63,0.00016575,2]
[351119552,1738343439659,-500.0,0.00016575,2]
[351119553,1738343439669,-500.0,0.00016575,2]
[351119554,1738343439678,-645.05,0.00016575,2]
[351119555,1738343439688,-500.0,0.00016575,2]
[351119556,1738343439697,-388.627543,0.00016575,2]
[351119557,1738343439706,-500.0,0.00016575,2]
[351119558,1738343439716,-569.68,0.00016575,2]
[351119559,1738343439725,-662.6,0.00016575,2]
[351119560,1738343439734,-180.42811327,0.00016575,2]
[351119561,1738343439743,-500.0,0.00016575,2]
[351119562,1738343439752,-1441.81,0.00016575,2]
[351119563,1738343439761,-500.0,0.00016575,2]
[351119564,1738343439771,-870.84,0.00016575,2]
[351119565,1738343439780,-1259.01,0.00016575,2]
[351119566,1738343439789,-500.0,0.00016575,2]
[351119567,1738343439798,-704.36,0.00016575,2]
[351119568,1738343439807,-500.0,0.00016575,2]
[351119569,1738343439816,-500.0,0.00016575,2]
[351119570,1738343439825,-500.0,0.00016575,2]
[351119571,1738343439834,-607.06,0.00016575,2]
[351119572,1738343439842,-612.3,0.00016575,2]
[351119573,1738343439851,-500.0,0.00016575,2]
[351119574,1738343439862,-500.0,0.00016575,2]
[351119575,1738343439870,-411.27009244,0.00016575,2]
[351119576,1738343439883,-581.42,0.00016575,2]
[351119577,1738343439896,-500.0,0.00016575,2]
[351119578,1738343439905,-734.51,0.00016575,2]
[351119579,1738343439914,-1579.72,0.00016575,2]
[351119580,1738343439923,-500.0,0.00016575,2]
[351119581,1738343439933,-500.0,0.00016575,2]
[351119582,1738343439942,-1159.3,0.00016575,2]
[351119583,1738343439952,-500.0,0.00016575,2]
[351119584,1738343439962,-500.0,0.00016575,2]
[351119585,1738343439972,-500.0,0.00016575,2]
[351119586,1738343439981,-832.09,0.00016575,2]
[351119587,1738343439991,-500.0,0.00016575,2]
[351119588,1738343440000,-777.16,0.00016575,2]
[351119589,1738343440011,-189.46766297,0.00016575,2]
[351119590,1738343440024,-4740.08233703,0.00016575,2]
[351119591,1738343440034,-500.0,0.00016575,2]
[351119592,1738343440044,-500.0,0.00016575,2]
[351119593,1738343440054,-521.69,0.00016575,2]
[351119594,1738343440065,-500.0,0.00016575,2]
[351119595,1738343440075,-500.0,0.00016575,2]
[351119596,1738343440084,-500.0,0.00016575,2]
[351119597,1738343440093,-1130.09,0.00016575,2]
[351119598,1738343440103,-756.22,0.00016575,2]
[351119599,1738343440113,-838.69,0.00016575,2]
[351119600,1738343440122,-500.0,0.00016575,2]
[351119601,1738343440136,-876.59,0.00016575,2]
[351119602,1738343440145,-1378.61,0.00016575,2]
[351119603,1738343440155,-1517.22,0.00016575,2]
[351119604,1738343440165,-4703.32,0.00016575,2]
[351119605,1738343440175,-500.0,0.00016575,2]
[351119606,1738343440184,-2618.44,0.00016575,2]
[351119607,1738343440193,-500.0,0.00016575,2]
[351119608,1738343440203,-500.0,0.00016575,2]
[351119609,1738343440213,-500.0,0.00016575,2]
[351119610,1738343440222,-500.0,0.00016575,2]
[351119611,1738343440231,-612.88,0.00016575,2]
[351119612,1738343440241,-500.0,0.00016575,2]
[351119613,1738343440250,-624.55,0.00016575,2]
[351119614,1738343440259,-3792.02,0.00016575,2]
[351119615,1738343440268,-579.36,0.00016575,2]
[351119616,1738343440278,-500.0,0.00016575,2]
[351119617,1738343440287,-500.0,0.00016575,2]
[351119618,1738343440296,-568.72,0.00016575,2]
[351119619,1738343440305,-535.61,0.00016575,2]
[351119622,1738343440314,-2076.55,0.00016575,2]
[351119623,1738343440324,-2590.44,0.00016575,2]
[351119625,1738343440333,-500.0,0.00016575,2]
[351119627,1738343440348,-3052.15,0.00016575,2]
[351119630,1738343440357,-622.52,0.00016575,2]
[351119632,1738343440366,-500.0,0.00016575,2]
[351119634,1738343440378,-1408.17,0.00016575,2]
[351119636,1738343440387,-1135.03,0.00016575,2]
[351119638,1738343440396,-500.0,0.00016575,2]
[351119640,1738343440410,-1884.43,0.00016575,2]
[351119642,1738343440419,-500.0,0.00016575,2]
[351119644,1738343440428,-715.02,0.00016575,2]
[351119646,1738343440437,-563.78,0.00016575,2]
[351119648,1738343440445,-727.05,0.00016575,2]
[351119649,1738343440455,-3020.52,0.00016575,2]
[351119650,1738343440464,-663.46,0.00016575,2]
[351119651,1738343440474,-500.0,0.00016575,2]
[351119652,1738343440483,-1623.68,0.00016575,2]
[351119653,1738343440492,-4421.25,0.00016575,2]
[351119654,1738343440501,-565.29,0.00016575,2]
[351119655,1738343440510,-1062.85,0.00016575,2]
[351119656,1738343440519,-1574.12,0.00016575,2]
[351119657,1738343440528,-500.0,0.00016575,2]
[351119658,1738343440537,-610.28317161,0.00016575,2]
[351119659,1738343440546,-1965.37,0.00016575,2]
[351119660,1738343440555,-2148.34,0.00016575,2]
[351119661,1738343440565,-500.0,0.00016575,2]
[351119662,1738343440576,-500.0,0.00016575,2]
[351119663,1738343440585,-1196.8,0.00016575,2]
[351119664,1738343440594,-920.78,0.00016575,2]
[351119665,1738343440603,-500.0,0.00016575,2]
[351119666,1738343440612,-1281.6392579,0.00016612,2]
[351119667,1738343440621,-1000.0,0.00016612,2]
[351119668,1738343440632,-155.94,0.00016658,30]
[351119669,1738343440642,-5000.0,0.00016684,4]
[351119670,1738343440650,-870.08,0.00016711,2]
[351119671,1738343440660,-1163.35,0.00016711,2]
[351119672,1738343440669,-530.41764506,0.00016711,2]
[351119673,1738343440678,-1521.25,0.00016711,2]
[351119674,1738343440686,-798.51,0.00016711,2]
[351119675,1738343440696,-1794.84,0.00016711,2]
[351119676,1738343440705,-500.0,0.00016711,2]
[351119677,1738343440714,-500.0,0.00016711,2]
[351119678,1738343440724,-1303.4,0.00016711,2]
[351119679,1738343440734,-1604.75,0.00016711,2]
[351119680,1738343440744,-656.69,0.00016711,2]
[351119681,1738343440753,-500.0,0.00016711,2]
[351119682,1738343440762,-861.49,0.00016711,2]
[351119683,1738343440771,-500.0,0.00016711,2]
[351119684,1738343440780,-500.0,0.00016711,2]
[351119685,1738343440789,-707.19,0.00016711,2]
[351119686,1738343440799,-500.0,0.00016711,2]
[351119687,1738343440809,-552.6,0.00016711,2]
[351119688,1738343440821,-687.79,0.00016711,2]
[351119689,1738343440831,-522.1,0.00016711,2]
[351119690,1738343440840,-952.82,0.00016711,2]
[351119691,1738343440850,-829.77,0.00016711,2]
[351119692,1738343440859,-500.0,0.00016712,2]
[351119693,1738343440867,-586.89,0.00016712,2]
[351119694,1738343440878,-500.0,0.00016712,2]
[351119695,1738343440891,-341.89191176,0.00016712,2]
[351119696,1738343440901,-500.0,0.00016712,2]
[351119697,1738343440910,-500.0,0.00016712,2]
[351119698,1738343440920,-500.0,0.00016712,2]
[351119699,1738343440931,-560.13,0.00016712,2]
[351119700,1738343440941,-500.0,0.00016712,2]
[351119701,1738343440950,-500.0,0.00016712,2]
[351119702,1738343440960,-916.1,0.00016712,2]
[351119703,1738343440969,-500.0,0.00016712,2]
[351119704,1738343440978,-500.0,0.00016712,2]
[351119705,1738343440987,-561.26,0.00016712,2]
[351119706,1738343440996,-577.01,0.00016712,2]
[351119707,1738343441008,-500.0,0.00016712,2]
[351119708,1738343441019,-500.0,0.00016712,2]
[351119709,1738343441028,-500.0,0.00016712,2]
[351119710,1738343441037,-500.0,0.00016712,2]
[351119711,1738343441046,-500.0,0.00016712,2]
[351119712,1738343441056,-500.0,0.00016712,2]
[351119713,1738343441065,-500.0,0.00016712,2]
[351119714,1738343441075,-233.32621693,0.00016712,2]
[351119715,1738343441086,-500.0,0.00016712,2]
[351119716,1738343441095,-500.0,0.00016712,2]
[351119717,1738343441103,-505.72,0.00016712,2]
[351119718,1738343441112,-500.0,0.00016712,2]
[351119719,1738343441121,-500.0,0.00016712,2]
[351119720,1738343441132,-500.0,0.00016712,2]
[351119721,1738343441141,-500.0,0.00016712,2]
[351119722,1738343441150,-766.18,0.00016712,2]
[351119723,1738343441159,-603.83,0.00016712,2]
[351119724,1738343441168,-500.0,0.00016712,2]
[351119725,1738343441177,-500.0,0.00016712,2]
[351119726,1738343441187,-880.31,0.00016712,2]
[351119727,1738343441197,-500.0,0.00016712,2]
[351119728,1738343441206,-254.28275914,0.00016712,2]
[351119729,1738343441215,-500.0,0.00016712,2]
[351119730,1738343441326,-500.0,0.00016712,2]
[351119731,1738343441335,-500.0,0.00016712,2]
[351119732,1738343441344,-611.11,0.00016712,2]
[351119733,1738343441353,-736.79,0.00016712,2]
[351119734,1738343441362,-512.47,0.00016712,2]
[351119735,1738343441371,-500.0,0.00016712,2]
[351119736,1738343441381,-554.67,0.00016712,2]
[351119737,1738343441390,-500.0,0.00016712,2]
[351119738,1738343441399,-500.0,0.00016712,2]
[351119739,1738343441408,-500.0,0.00016712,2]
[351119740,1738343441418,-500.0,0.00016712,2]
[351119741,1738343441427,-500.0,0.00016712,2]
[351119742,1738343441436,-500.0,0.00016712,2]
[351119743,1738343441445,-500.0,0.00016712,2]
[351119744,1738343441454,-500.0,0.00016712,2]
[351119745,1738343441463,-500.0,0.00016712,2]
[351119746,1738343441472,-500.0,0.00016712,2]
[351119747,1738343441481,-245.4347662,0.00016712,2]
[351119748,1738343441490,-500.0,0.00016712,2]
[351119749,1738343441499,-500.0,0.00016712,2]
[351119750,1738343441508,-500.0,0.00016712,2]
[351119751,1738343441518,-500.0,0.00016712,2]
[351119752,1738343441528,-500.0,0.00016712,2]
[351119753,1738343441538,-779.64,0.00016712,2]
[351119754,1738343441547,-500.0,0.00016712,2]
[351119755,1738343441557,-500.22,0.00016712,2]
[351119756,1738343441566,-500.0,0.00016712,2]
[351119757,1738343441575,-500.0,0.00016712,2]
[351119758,1738343441584,-500.0,0.00016712,2]
[351119759,1738343441593,-500.0,0.00016712,2]
[351119760,1738343441602,-500.0,0.00016712,2]
[351119761,1738343441611,-500.0,0.00016712,2]
[351119762,1738343441620,-584.04,0.00016712,2]
[351119763,1738343441630,-500.0,0.00016712,2]
[351119764,1738343441639,-500.0,0.00016712,2]
[351119765,1738343441648,-500.0,0.00016712,2]
[351119766,1738343441658,-500.0,0.00016712,2]
[351119767,1738343441666,-686.01,0.00016712,2]
[351119768,1738343441675,-500.0,0.00016712,2]
[351119769,1738343441685,-500.0,0.00016712,2]
[351119770,1738343441694,-500.0,0.00016712,2]
[351119771,1738343441702,-500.0,0.00016712,2]
[351119772,1738343441711,-500.0,0.00016712,2]
[351119773,1738343441721,-500.0,0.00016712,2]
[351119774,1738343441730,-500.0,0.00016712,2]
[351119775,1738343441739,-807.02,0.00016712,2]
[351119776,1738343441748,-500.0,0.00016712,2]
[351119777,1738343441757,-633.45,0.00016712,2]
[351119778,1738343441766,-315.2082473,0.00016712,2]
[351119779,1738343441775,-513.92169685,0.00016712,2]
[351119780,1738343441784,-500.0,0.00016712,2]
[351119781,1738343441794,-500.0,0.00016712,2]
[351119782,1738343441804,-500.0,0.00016712,2]